[Event "8th Montevideo Open 2025"]
[Site "Montevideo"]
[Date "2025.02.01"]
[Round "1.11"]
[White "Carbone, Diego"]
[Black "Porteiro, Rodrigo"]
[Result "1-0"]
[Annotator "TA"]
[ECO "D46"]
[WhiteElo "2216"]
[BlackElo "1815"]
[PlyCount "60"]
[EventDate "2025.02.01"]
[EventType "swiss"]
[EventCountry "URU"]
[SourceTitle "playchess.com"]
[Source "ChessBase"]
[SourceQuality "1"]
[TimeControl "5400+30"]

{[%evp 15,60,3,10,0,59,63,70,51,60,49,98,87,179,169,285,255,319,318,347,211,343,274,652,645,650,659,636,633,614,652,589,257,869,854,1629,1629,1422,1377,1390,1389,1346,1345,1957,1327,29990,29991,29991]} 1. d4 d5 2. Nf3 Nf6 3. c4 c6 4. Nc3 e6 5. e3 Nbd7 6. Qc2 Bd6 7. Bd3 dxc4 8. Bxc4 b5 9. Be2 {D46: Semi-Slav: 5 e3 Nbd7 6 Bd3, Black avoids the Meran.} Bb7 (9... O-O $11) 10. e4 $14 {Black must now prevent e5.} e5 11. dxe5 {White is slightly better.} Nxe5 12. Nd4 b4 $146 (12... Bc5 $14 {should be considered.} 13. Nf5 g6) (12... O-O 13. Nf5 Bc5 14. O-O Qb6 15. Bg5 Nfd7 16. Rad1 Rae8 17. Nd6 Re6 18. Nxb7 Qxb7 {1-0 Sarana,A (2685)-Xiong,J (2686) Chess.com Rapid Wk5 Swiss 2022 (9)}) 13. Na4 $16 Rc8 (13... O-O $16) 14. Nf5 Bf8 (14... O-O $142) 15. Nc5 $18 Qb6 16. Be3 Qc7 17. Bf4 Ba8 (17... g6 {was necessary.} 18. Nxb7 gxf5) 18. O-O ({Less strong is} 18. Na6 Nf3+ 19. Bxf3 Qxf4 $16) 18... Nf3+ $2 (18... g6 19. Nd3 Nfd7) 19. Bxf3 Qxf4 {[#]} 20. e5 $1 {[%mdl 512]} Nd5 {[#]} 21. Ne4 $1 Kd8 (21... g6 22. Nfd6+) 22. Ned6 Rc7 23. Rac1 (23. Rfe1 $142) 23... Nb6 $2 (23... Qxe5 24. Rce1 Bxd6 25. Rxe5 Bxe5) 24. Rfd1 Rg8 25. Nxf7+ {Excellent horsemanship.} Ke8 {[%cal Bd8e8,Be8f7,Bf7g6,Bg6g5][%mdl 32]} 26. Rd8+ Kxf7 27. Qb3+ Nd5 28. Bxd5+ Kg6 {Black is weak on the light squares} 29. Ne3 Qxe5 30. Qd3+ Kg5 {White took control after the opening.   Weighted Error Value: White=0.65/Black=1.30  Mistake:       	---       	Black=6      Inaccurate:     	White=1     	Black=1      OK:         	White=4     	Black=1      Best:        	White=4     	---} 1-0

[Event "8th Montevideo Open 2025"]
[Site "Montevideo"]
[Date "2025.02.01"]
[Round "1.12"]
[White "Lopez Betancourt, Bryan"]
[Black "Mussanti, Diego"]
[Result "0-1"]
[Annotator "TA"]
[ECO "D00"]
[WhiteElo "1897"]
[BlackElo "2173"]
[PlyCount "42"]
[EventDate "2025.02.01"]
[EventType "swiss"]
[EventCountry "URU"]
[SourceTitle "playchess.com"]
[Source "ChessBase"]
[SourceQuality "1"]
[TimeControl "5400+30"]

{[%evp 9,42,14,8,3,27,-87,-81,-85,-81,-254,-247,-254,-214,-439,-440,-387,-359,-727,-721,-1571,-1564,-2211,-2190,-2461,-2401,-29995,-29996,-29996,-29997,-29997,-29998,-29998,-29995,-29998,-29999]} 1. d4 d5 2. Nc3 Nf6 3. Bf4 e6 4. e3 Bd6 5. Qf3 O-O 6. g4 {D00: 1 d4 d5: Unusual lines.} c5 7. h4 $146 {[#]} (7. Bxd6 $11 {remains equal.} Qxd6 8. O-O-O) (7. dxc5 Bxc5 8. O-O-O Qa5 9. Kb1 e5 10. Bxe5 Bxg4 11. Qg3 Nbd7 12. Bxf6 Nxf6 13. Be2 {0-1 Moroni,L (2576)-Grigoriants,S (2572) Titled Tuesday intern op 28th Feb Early blitz 2023 (11)}) 7... cxd4 $1 $17 8. exd4 {[#] Black is better.} Nc6 $1 9. Be3 (9. Bxd6 $17 Qxd6 10. O-O-O) 9... e5 $19 10. g5 Ne4 11. Nxe4 $2 (11. Nge2 exd4 12. Bxd4) 11... dxe4 12. Qd1 exd4 13. Bd2 {[#]} (13. Bxd4 Bb4+ 14. c3 Nxd4 (14... Qxd4 $2 15. Qxd4 Nxd4 16. O-O-O $19) 15. Bg2) 13... e3 $1 {[%mdl 512]} 14. Bc1 (14. a3 Qb6) 14... Qa5+ 15. c3 dxc3 16. b4 Bxb4 {( -> ...c2+)} 17. Qh5 c2+ {Black mates.} 18. Ke2 Nd4+ 19. Kxe3 Re8+ 20. Kd3 Bg4 21. Kc4 Qc5+ {White got outplayed after the opening.   Weighted Error Value: White=1.57/Black=0.04 (flawless)   Loses game:     	White=1     	---        Mistake:       	White=3     	---        Inaccurate:     	White=1     	---        OK:         	White=1     	Black=3      Strong:       	---       	Black=2} 0-1

[Event "8th Montevideo Open 2025"]
[Site "Montevideo"]
[Date "2025.02.01"]
[Round "1.13"]
[White "Dominguez, Facundo"]
[Black "Tacoronte, Daniel"]
[Result "1-0"]
[Annotator "TA"]
[ECO "B50"]
[WhiteElo "2159"]
[BlackElo "1813"]
[PlyCount "32"]
[EventDate "2025.02.01"]
[EventType "swiss"]
[EventCountry "URU"]
[SourceTitle "playchess.com"]
[Source "ChessBase"]
[SourceQuality "1"]
[TimeControl "5400+30"]

{[%evp 11,32,3,10,10,10,1,57,0,-9,-17,-7,-13,0,-22,4,17,4,0,55,42,43,42,79]} 1. e4 {[%emt 0:00:03]} c5 {[%emt 0:01:19]} 2. Nf3 {[%emt 0:00:14]} d6 {[%emt 0:00:15]} 3. c3 {[%emt 0:00:42]} Nf6 {[%emt 1:30:26]} 4. h3 Nc6 5. Bd3 e5 {[%emt 0:00:00]} 6. Bc2 {[%emt 0:01:10]} Be7 {[%emt 0:00:00]} 7. O-O {[%emt 0:01:03] B50: Sicilian: 2...d6, Miscellaneous.} O-O {[%emt 0:00:00]} 8. d4 {[%emt 0:00:57]} Qc7 {[%emt 0:00:00]} ({Black should try} 8... exd4 $11 9. cxd4 cxd4) 9. dxc5 {[%emt 0:07:45]} (9. d5 $14) 9... dxc5 $11 {[%emt 0:00:00]} 10. Bg5 {[%emt 0:00:20]} Rd8 $146 {[%emt 0:00:00]} (10... Re8 11. Nbd2 a6 12. Qe2 Be6 13. Rfd1 h6 14. Bxf6 Bxf6 15. Bb3 b5 16. Bxe6 Rxe6 {1-0 Bibasa,B (2189)-Wanyama,H (2141) UGA olympic qual 3rd 2012 (3)}) 11. Qe2 {[%emt 0:00:47]} Be6 {[%emt 0:00:00]} 12. Nbd2 {[%emt 0:02:32]} a6 {[%emt 0:00:00]} 13. Bb3 {[%emt 0:08:15]} Bxb3 {[%emt 0:00:00]} 14. axb3 {[%emt 0:03:42]} h6 {[%emt 0:00:00]} (14... Nh5 $11) 15. Bxf6 $14 {[%emt 0:00:14]} Bxf6 {[%emt 0:00:00]} 16. Nc4 {[%emt 0:00:28]} Rd7 {[%emt 0:00:00] Weighted Error Value: White=0.12 (very precise) /Black=0.29 (precise)   Mistake:       	White=1     	Black=2      Inaccurate:     	---       	Black=2      OK:         	White=3     	Black=2      Best:        	White=1     	---} 1-0

[Event "8th Montevideo Open 2025"]
[Site "Montevideo"]
[Date "2025.02.01"]
[Round "1.14"]
[White "Silva, Juliana Figueira The"]
[Black "Brizzi, Milagros Tatiana"]
[Result "0-1"]
[Annotator "TA"]
[ECO "A86"]
[WhiteElo "1807"]
[BlackElo "2150"]
[PlyCount "90"]
[EventDate "2025.02.01"]
[EventType "swiss"]
[EventCountry "URU"]
[SourceTitle "playchess.com"]
[Source "ChessBase"]
[SourceQuality "1"]
[TimeControl "5400+30"]

{[%evp 10,90,31,13,29,25,21,17,50,11,39,44,45,54,62,54,53,58,66,66,65,60,83,66,63,2,40,26,39,24,26,23,27,25,22,20,28,24,31,0,0,0,99,0,0,0,0,0,0,-225,-220,-451,-446,-502,-507,-914,-903,-907,-889,-829,-780,-927,-965,-1001,-1015,-1344,-1307,-1525,-1423,-1262,-1212,-1710,-1698,-1472,-1569,-29983,-29985,-29986,-29987,-29987,-29988,-29988,-29989]} 1. d4 {[%emt 1:31:00]} f5 {[%emt 0:01:40]} 2. g3 {[%emt 0:00:00]} Nf6 {[%emt 0:00:15]} 3. Bg2 {[%emt 0:00:00]} g6 {[%emt 0:00:21]} 4. c4 {[%emt 0:00:00]} Bg7 {[%emt 0:00:07]} 5. Nh3 {[%emt 0:00:00]} d6 {[%emt 0:01:21]} 6. d5 {[%emt 0:00:00]} Nbd7 {[%emt 0:04:18] A86: Dutch Defence: Leningrad System: Unusual lines and 5 Nh3.} 7. O-O {[%emt 0:00:00]} O-O {[%emt 0:02:36]} 8. Qc2 {[%emt 0:03:30]} Nb6 $146 {[%emt 0:04:13] The position is equal.} (8... Ne5 9. b3 c5 10. dxc6 Nxc6 11. Bb2 Qb6 12. Nc3 e5 13. Rad1 Nd4 14. Qd3 Ng4 {1-0 Kabatianski,A (2439)-Auer,M (2311) NRW Class1 1011 2010 (4.2)}) 9. Nd2 {[%emt 0:00:00]} Qe8 {[%emt 0:02:55]} 10. Rb1 {[%emt 0:00:00]} e5 {[%emt 0:02:23]} 11. dxe6 {[%emt 0:00:00]} c6 {[%emt 0:01:34]} 12. Re1 {[%emt 0:02:00]} Bxe6 {[%emt 0:01:51][%cal Of6e4]} 13. b3 {[%emt 0:00:30]} d5 {[%emt 0:02:47]} 14. Ba3 {[%emt 0:00:00]} Rf7 {[%emt 0:01:07]} 15. Ng5 {[%emt 0:00:00]} Rd7 {[%emt 0:00:42]} 16. Nxe6 {[%emt 0:00:00]} Qxe6 {[%emt 0:00:03]} 17. cxd5 {[%emt 0:00:00]} ({White should play} 17. c5 $14) 17... cxd5 {[%emt 0:01:58]} 18. Bb2 {[%emt 0:02:30] This pair of bishops is nice.} Rc8 {[%emt 0:06:40]} 19. Qd3 {[%emt 0:00:00]} Ne4 {[%emt 0:01:03]} 20. Bxg7 {[%emt 0:00:00]} Kxg7 {[%emt 0:00:14]} 21. Nf3 {[%emt 0:01:30]} Qf6 22. Rbc1 Rdc7 23. Rxc7+ Rxc7 {[%emt 0:06:13]} 24. Qd4 {[%emt 0:00:00]} Rc2 {[%emt 0:00:30]} 25. a4 {[%emt 0:02:00]} Nd2 {[%emt 0:10:07]} 26. Qxf6+ {[%emt 0:00:00]} (26. Qb4 $16 a5 27. Qb5 (27. Qxa5 Nxb3 28. Qb5 Nc5 $14)) 26... Kxf6 $11 {[%emt 0:00:09]} 27. Nd4 {[%emt 0:00:00]} Rb2 {[%emt 0:00:30][%cal Of6e5]} 28. a5 {[%emt 0:00:00]} Nd7 {[%emt 0:00:30]} 29. Bxd5 $2 {[%emt 0:00:00] [#] White is on the road to losing.} (29. f4 $11 {and White is okay.}) 29... Ke5 $1 $19 {[%emt 0:01:14][%csl LRd4,LRd5]} 30. Nf3+ $2 {[%emt 0:00:00]} (30. Bc6 bxc6 31. Nxc6+ Ke6 32. Nxa7) 30... Kxd5 {[%emt 0:00:12]} 31. Rd1 {[%emt 0:00:00]} Rb1 {[%emt 0:00:30]} 32. e4+ {[%emt 0:00:00]} (32. Rxb1 $142 Nxb1 33. h3) 32... fxe4 {[%emt 0:00:30]} (32... Kxe4 $2 {is the wrong capture.} 33. Nxd2+ Kd5 34. Nxb1+ $18 (34. Rxb1 Ne5 $18)) 33. Rxb1 {[%emt 0:00:00]} Nxb1 {[%emt 0:00:30]} 34. Ng5 {[%emt 0:00:00]} Nf6 {[%emt 0:00:30]} 35. Kf1 {[%emt 0:00:00]} Nd2+ {[%emt 0:00:30]} 36. Ke2 {[%emt 0:00:00]} Nxb3 {[%emt 0:00:00]} 37. a6 {[%emt 0:00:00]} b5 {[%emt 0:00:00]} 38. Nh3 {[%emt 0:00:00]} Nc5 {[%emt 0:00:00][%cal Ob5b4] [#]} 39. Nf4+ {[%emt 0:00:00]} Ke5 {[%emt 0:00:00]} 40. h3 {[%emt 0:00:00]} Nxa6 {[%emt 0:00:02]} 41. Kd2 {[%emt 0:00:00]} Nc5 {[%emt 0:00:12] Threatens to win with ...b4.} 42. Kc3 {[%emt 0:00:00]} Nd5+ {[%emt 0:00:19] Black mates.} 43. Nxd5 {[%emt 0:00:00]} Kxd5 {[%emt 0:00:30]} 44. Kb4 {[%emt 0:00:00]} Nd3+ {[%emt 0:00:30]} 45. Kxb5 {[%emt 0:00:00]} Nxf2 {[%emt 0:00:30] Weighted Error Value: White=0.64/Black=0.14 (very precise)   Loses game:     	White=1     	---        Mistake:       	White=4     	Black=1      Inaccurate:     	White=2     	Black=3      OK:         	White=12    	Black=10     Best:        	White=1     	Black=5} 0-1

[Event "8th Montevideo Open 2025"]
[Site "Montevideo"]
[Date "2025.02.01"]
[Round "1.15"]
[White "Bauza, Alejandro"]
[Black "Pascualvaca, Federico"]
[Result "1-0"]
[Annotator "NA RC"]
[ECO "A14"]
[WhiteElo "2116"]
[BlackElo "1794"]
[PlyCount "57"]
[EventDate "2025.02.01"]
[EventType "swiss"]
[EventCountry "URU"]
[SourceTitle "playchess.com"]
[Source "ChessBase"]
[SourceQuality "1"]
[TimeControl "5400+30"]

1. Nf3 {[%emt 0:00:23]} Nf6 {[%emt 0:00:34]} 2. g3 {[%emt 0:00:12]} e6 {[%emt 0:01:04]} 3. c4 {[%emt 0:01:27]} b6 {[%emt 0:01:29]} 4. Bg2 {[%emt 0:00:21]} Bb7 {[%emt 0:00:21]} 5. O-O {[%emt 0:01:00]} Be7 {[%emt 0:01:35]} 6. b3 {[%emt 0:01:45]} O-O {[%emt 0:01:58]} 7. Bb2 {[%emt 0:00:26]} c5 {[%emt 0:03:14]} 8. e3 {[%emt 0:08:45]} d5 {[%emt 0:03:23]} 9. Qe2 {[%emt 0:04:24]} Nc6 {[%emt 0:04:52]} 10. d3 {[%emt 0:03:07]} Qc7 {[%emt 0:07:30]} 11. Nc3 {[%emt 0:01:50]} a6 {[%emt 0:03:40]} 12. cxd5 {[%emt 0:05:35]} exd5 {[%emt 0:02:10]} 13. d4 {[%emt 0:03:22]} b5 {[%emt 0:10:46]} 14. dxc5 {[%emt 0:00:41]} Bxc5 {[%emt 0:00:49]} 15. Rac1 {[%emt 0:02:24]} Qe7 {[%emt 0:03:12]} 16. Nh4 {[%emt 0:05:35]} Rfd8 {[%emt 0:06:18]} 17. Rfd1 {[%emt 0:04:11]} g6 {[%emt 0:23:40]} 18. Nxd5 {[%emt 0:04:17]} Nxd5 {[%emt 0:00:56]} 19. Rxd5 {[%emt 0:50:15]} Rxd5 {[%emt 0:04:15]} 20. Bxd5 {[%emt 0:00:30]} Nd8 {[%emt 0:07:39]} 21. Qf3 {[%emt 0:00:30]} Bd6 {[%emt 0:05:22]} 22. Bf6 {[%emt 0:00:30]} Bxd5 {[%emt 0:04:15]} 23. Qxd5 {[%emt 0:00:00]} Qxf6 {[%emt 0:00:41]} 24. Qxa8 {[%emt 0:00:00]} Be7 {[%emt 0:00:28]} 25. Nf3 {[%emt 0:00:00]} Kg7 {[%emt 0:00:24]} 26. Nd4 {[%emt 0:00:00]} h5 {[%emt 0:00:44]} 27. h4 {[%emt 0:00:00]} g5 {[%emt 0:01:30]} 28. hxg5 {[%emt 0:00:00]} Qxg5 {[%emt 0:00:11]} 29. Qe4 {[%emt 0:00:00]} 1-0

[Event "8th Montevideo Open 2025"]
[Site "Montevideo"]
[Date "2025.02.01"]
[Round "1.16"]
[White "Fabra, Nahiara"]
[Black "Curi, Gabriel"]
[Result "0-1"]
[Annotator "NA RC"]
[ECO "C02"]
[WhiteElo "1792"]
[BlackElo "2115"]
[PlyCount "80"]
[EventDate "2025.02.01"]
[EventType "swiss"]
[EventCountry "URU"]
[SourceTitle "playchess.com"]
[Source "ChessBase"]
[SourceQuality "1"]
[TimeControl "5400+30"]

1. e4 {[%emt 0:02:12]} e6 {[%emt 0:00:05]} 2. d4 {[%emt 0:00:03]} d5 {[%emt 0:00:05]} 3. e5 {[%emt 0:00:07]} c5 {[%emt 0:00:06]} 4. c3 {[%emt 0:00:05]} Nc6 {[%emt 0:00:05]} 5. Nf3 {[%emt 0:00:05]} Bd7 {[%emt 0:00:49]} 6. Bd3 {[%emt 0:01:00]} Rc8 {[%emt 0:00:11]} 7. O-O {[%emt 0:00:52]} cxd4 {[%emt 0:00:15]} 8. a3 {[%emt 0:05:13]} Qb6 {[%emt 0:03:47]} 9. Re1 {[%emt 0:02:10]} Nge7 {[%emt 0:05:55]} 10. h4 {[%emt 0:02:05]} h6 {[%emt 0:03:28]} 11. b4 {[%emt 0:05:11]} dxc3 {[%emt 0:01:22]} 12. Nxc3 {[%emt 0:11:57]} Nd4 {[%emt 0:09:32]} 13. Nxd4 {[%emt 0:03:45]} Qxd4 {[%emt 0:04:46]} 14. Nb5 {[%emt 0:05:06]} Qxa1 {[%emt 0:00:09]} 15. Nd6+ {[%emt 0:05:30]} Kd8 {[%emt 0:00:05]} 16. Nxf7+ {[%emt 0:00:46]} Kc7 {[%emt 0:00:04]} 17. Nxh8 {[%emt 0:02:42]} Kb8 {[%emt 0:01:15]} 18. Qd2 {[%emt 0:13:59]} Qd4 {[%emt 0:03:35]} 19. g3 {[%emt 0:03:30]} Nc6 {[%emt 0:07:22]} 20. Bb2 {[%emt 0:05:51]} Qb6 {[%emt 0:00:43]} 21. Ng6 {[%emt 0:03:01]} Ne7 {[%emt 0:05:08]} 22. Nxf8 {[%emt 0:04:00]} Rxf8 {[%emt 0:52:43]} 23. Rc1 {[%emt 0:09:50]} Bb5 {[%emt 0:00:30]} 24. Bxb5 {[%emt 0:10:39]} Qxb5 {[%emt 0:00:00]} 25. Rc5 {[%emt 0:01:15]} Qd7 {[%emt 0:00:00]} 26. Bd4 {[%emt 0:00:56]} b6 {[%emt 0:00:00]} 27. Rc3 {[%emt 0:01:00]} Rc8 {[%emt 0:00:00]} 28. Rxc8+ {[%emt 0:00:41]} Qxc8 {[%emt 0:00:00]} 29. Kg2 {[%emt 0:00:42]} Nf5 {[%emt 0:00:00]} 30. Be3 {[%emt 0:00:46]} Qc4 {[%emt 0:00:00]} 31. Qc1 {[%emt 0:00:23]} Qe4+ {[%emt 0:00:00]} 32. Kh2 {[%emt 0:00:23]} d4 {[%emt 0:00:00]} 33. Bf4 {[%emt 0:00:39]} d3 {[%emt 0:00:00]} 34. Qc3 {[%emt 0:00:26]} Nd4 {[%emt 0:00:00]} 35. Be3 {[%emt 0:01:10]} Nf3+ {[%emt 0:00:00]} 36. Kh3 {[%emt 0:00:00]} g5 {[%emt 0:00:00]} 37. hxg5 {[%emt 0:00:20]} hxg5 {[%emt 0:00:00]} 38. g4 {[%emt 0:00:33]} Nxe5 {[%emt 0:00:00]} 39. f3 {[%emt 0:00:34]} Qxf3+ {[%emt 0:00:00]} 40. Kh2 {[%emt 0:00:28]} Nxg4+ {[%emt 0:00:00]} 0-1

[Event "8th Montevideo Open 2025"]
[Site "Montevideo"]
[Date "2025.02.01"]
[Round "1.17"]
[White "Carvalho, Guillermo"]
[Black "Sanguinetti, Eduardo"]
[Result "1-0"]
[Annotator "NA RC"]
[ECO "A16"]
[WhiteElo "2094"]
[BlackElo "1776"]
[PlyCount "101"]
[EventDate "2025.02.01"]
[EventType "swiss"]
[EventCountry "URU"]
[SourceTitle "playchess.com"]
[Source "ChessBase"]
[SourceQuality "1"]
[TimeControl "5400+30"]

1. c4 {[%emt 0:00:30]} d5 {[%emt 0:00:30]} 2. e3 {[%emt 0:00:30]} Nf6 {[%emt 0:00:30]} 3. Nc3 {[%emt 0:00:30]} g6 {[%emt 0:00:41]} 4. Nf3 {[%emt 0:01:37]} Bg7 {[%emt 0:01:14]} 5. cxd5 {[%emt 0:00:47]} O-O {[%emt 0:01:10]} 6. e4 {[%emt 0:00:52]} c6 {[%emt 0:00:26]} 7. dxc6 {[%emt 0:00:30]} Nxc6 {[%emt 0:00:07]} 8. Be2 {[%emt 0:03:07]} Bg4 {[%emt 0:08:46]} 9. d3 {[%emt 0:01:49]} a6 {[%emt 0:06:42]} 10. Be3 {[%emt 0:01:52]} b5 {[%emt 0:08:36]} 11. a3 {[%emt 0:03:11]} Rc8 {[%emt 0:02:23]} 12. d4 {[%emt 0:04:06]} Bxf3 {[%emt 0:02:04]} 13. Bxf3 {[%emt 0:02:02]} e5 {[%emt 0:00:10]} 14. d5 {[%emt 0:02:38]} Nd4 {[%emt 0:00:23]} 15. O-O {[%emt 0:00:52]} Rc4 {[%emt 0:02:42]} 16. Re1 {[%emt 0:10:00]} Qd6 {[%emt 0:01:14]} 17. Bxd4 {[%emt 0:07:50]} Rxd4 {[%emt 0:00:01]} 18. Qb3 {[%emt 0:01:54]} Rc8 {[%emt 0:03:43]} 19. Rad1 {[%emt 0:02:25]} Rdc4 {[%emt 0:01:52]} 20. Be2 {[%emt 0:04:18]} R4c7 {[%emt 0:00:12]} 21. g3 {[%emt 0:01:06]} Nd7 {[%emt 0:04:28]} 22. Bg4 {[%emt 0:02:34]} Nc5 {[%emt 0:00:29]} 23. Qa2 {[%emt 0:04:48]} Rf8 {[%emt 0:01:19]} 24. Qb1 {[%emt 0:04:35]} Nb3 {[%emt 0:01:24]} 25. Qd3 {[%emt 0:02:36]} Nd4 {[%emt 0:00:46]} 26. Ne2 {[%emt 0:01:21]} Rc4 {[%emt 0:01:23]} 27. Nxd4 {[%emt 0:02:00]} Rxd4 {[%emt 0:00:06]} 28. Qb3 {[%emt 0:02:07]} Rc4 {[%emt 0:00:37]} 29. Bh3 {[%emt 0:01:01]} f5 {[%emt 0:05:09]} 30. exf5 gxf5 {[%emt 0:00:06]} 31. Bf1 {[%emt 0:02:29]} Rc5 {[%emt 0:00:34]} 32. a4 {[%emt 0:01:24]} f4 {[%emt 0:03:08]} 33. axb5 {[%emt 0:01:45]} fxg3 {[%emt 0:02:51]} 34. hxg3 {[%emt 0:00:16]} axb5 {[%emt 0:01:01]} 35. Re2 {[%emt 0:02:25]} Kh8 {[%emt 0:01:58]} 36. Bg2 {[%emt 0:01:32]} Rfc8 {[%emt 0:02:10]} 37. Qe3 {[%emt 0:04:29]} Bh6 {[%emt 0:04:44]} 38. Qxe5+ {[%emt 0:01:41]} Qxe5 {[%emt 0:00:05]} 39. Rxe5 {[%emt 0:00:08]} b4 {[%emt 0:00:47]} 40. Be4 {[%emt 0:03:21]} Bg7 {[%emt 0:00:25]} 41. Re7 {[%emt 0:00:29]} Bxb2 {[%emt 0:00:05]} 42. Rxh7+ {[%emt 0:04:03]} Kg8 {[%emt 0:00:01]} 43. Rb7 {[%emt 0:01:10]} Rc1 {[%emt 0:02:16]} 44. Rxc1 {[%emt 0:00:09]} Rxc1+ {[%emt 0:00:01]} 45. Kg2 {[%emt 0:00:16]} Bc3 {[%emt 0:00:05]} 46. f4 {[%emt 0:02:58]} Be1 {[%emt 0:01:15]} 47. d6 {[%emt 0:00:36]} Rd1 {[%emt 0:00:16]} 48. d7 {[%emt 0:01:55]} Kf8 {[%emt 0:00:36]} 49. Bf5 {[%emt 0:00:54]} Ke7 {[%emt 0:00:21]} 50. Rb8 {[%emt 0:00:39]} Rd5 {[%emt 0:00:32]} 51. Re8+ {[%emt 0:00:28]} 1-0

[Event "8th Montevideo Open 2025"]
[Site "Montevideo"]
[Date "2025.02.01"]
[Round "1.18"]
[White "Rubinstein, Eloi"]
[Black "De Lima, Adriano Gaspar"]
[Result "0-1"]
[Annotator "NA RC"]
[ECO "B92"]
[WhiteElo "1762"]
[BlackElo "2073"]
[PlyCount "78"]
[EventDate "2025.02.01"]
[EventType "swiss"]
[EventCountry "URU"]
[SourceTitle "playchess.com"]
[Source "ChessBase"]
[SourceQuality "1"]
[TimeControl "5400+30"]

1. e4 {[%emt 0:00:03]} c5 {[%emt 0:02:13]} 2. Nf3 {[%emt 0:00:04]} d6 {[%emt 0:01:38]} 3. d4 {[%emt 0:00:22]} cxd4 {[%emt 0:01:13]} 4. Nxd4 {[%emt 0:00:19]} Nf6 {[%emt 0:02:05]} 5. Nc3 {[%emt 0:00:30]} a6 {[%emt 0:00:18]} 6. Be2 {[%emt 0:00:36]} e5 {[%emt 0:03:16]} 7. Nb3 {[%emt 0:00:35]} Be6 {[%emt 0:01:10]} 8. Be3 {[%emt 0:00:42]} d5 {[%emt 0:04:33]} 9. exd5 {[%emt 0:02:39]} Nxd5 {[%emt 0:00:56]} 10. Nxd5 {[%emt 0:11:04]} Bxd5 {[%emt 0:02:54]} 11. O-O {[%emt 0:01:48]} Nc6 {[%emt 0:02:29]} 12. Re1 {[%emt 0:08:36]} Be7 {[%emt 0:10:13]} 13. Nc5 {[%emt 0:07:17]} Bxc5 {[%emt 0:09:14]} 14. Bxc5 {[%emt 0:00:03]} f6 {[%emt 0:01:19]} 15. Bf3 {[%emt 0:06:38]} Be6 {[%emt 0:07:42]} 16. c3 {[%emt 0:03:00]} Kf7 {[%emt 0:01:55]} 17. Qc2 {[%emt 0:02:50]} Qc7 {[%emt 0:03:38]} 18. Rad1 {[%emt 0:02:40]} g6 {[%emt 0:08:21]} 19. Bd5 {[%emt 0:02:32]} Bxd5 {[%emt 0:05:02]} 20. Rxd5 {[%emt 0:00:47]} Rhd8 {[%emt 0:01:19]} 21. Rxd8 {[%emt 0:09:20]} Nxd8 {[%emt 0:07:18]} 22. Qb3+ {[%emt 0:01:40]} Ne6 {[%emt 0:01:50]} 23. Rd1 {[%emt 0:03:40]} Re8 {[%emt 0:02:00]} 24. Be3 {[%emt 0:08:09]} Kg7 {[%emt 0:04:36]} 25. Qa4 {[%emt 0:04:24]} Rd8 {[%emt 0:02:54]} 26. Rxd8 {[%emt 0:02:07]} Qxd8 {[%emt 0:00:24]} 27. g3 {[%emt 0:01:39]} f5 {[%emt 0:02:06]} 28. h4 {[%emt 0:04:08]} Qd6 {[%emt 0:10:47]} 29. f4 {[%emt 0:03:28]} b5 {[%emt 0:00:37]} 30. fxe5 {[%emt 0:00:48]} Qd3 {[%emt 0:00:22]} 31. Qxa6 {[%emt 0:00:30]} Qxe3+ {[%emt 0:00:30]} 32. Kh2 {[%emt 0:00:30]} Qxe5 {[%emt 0:00:30]} 33. Qa7+ {[%emt 0:00:30]} Kh6 {[%emt 0:00:30]} 34. Qf2 {[%emt 0:00:30]} f4 {[%emt 0:00:30]} 35. g4 {[%emt 0:05:56]} f3+ {[%emt 0:00:54]} 36. Kh1 {[%emt 0:01:02]} Qf4 {[%emt 0:00:30]} 37. g5+ {[%emt 0:01:09]} Kh5 {[%emt 0:00:17]} 38. Kg1 {[%emt 0:00:17]} Qg4+ {[%emt 0:00:38]} 39. Kf1 {[%emt 0:00:19]} Nf4 {[%emt 0:00:08]} 0-1

[Event "8th Montevideo Open 2025"]
[Site "Montevideo"]
[Date "2025.02.01"]
[Round "1.19"]
[White "Izquierdo, Daniel"]
[Black "Pelaez, Diego"]
[Result "1-0"]
[Annotator "NA RC"]
[ECO "D02"]
[WhiteElo "2069"]
[BlackElo "1761"]
[PlyCount "49"]
[EventDate "2025.02.01"]
[EventType "swiss"]
[EventCountry "URU"]
[SourceTitle "playchess.com"]
[Source "ChessBase"]
[SourceQuality "1"]
[TimeControl "5400+30"]

1. c4 {[%emt 0:17:25]} Nf6 {[%emt 0:00:33]} 2. Nf3 {[%emt 0:00:14]} e6 {[%emt 0:00:58]} 3. g3 {[%emt 0:00:10]} d5 {[%emt 0:00:24]} 4. Bg2 {[%emt 0:00:07]} Bd6 {[%emt 0:01:08]} 5. O-O {[%emt 0:00:25]} O-O {[%emt 0:00:47]} 6. d4 {[%emt 0:02:09]} h6 {[%emt 1:29:40]} 7. Nc3 {[%emt 1:13:30]} c6 {[%emt 0:00:00]} 8. Qd3 {[%emt 0:00:00]} Nbd7 {[%emt 0:00:00]} 9. b3 {[%emt 0:00:00]} Re8 {[%emt 0:00:00]} 10. Bb2 {[%emt 0:00:00]} b6 {[%emt 0:00:00]} 11. Rad1 {[%emt 0:00:00]} Bb7 {[%emt 0:00:00]} 12. e4 {[%emt 0:00:00]} dxe4 {[%emt 0:00:00]} 13. Nxe4 {[%emt 0:00:00]} Nxe4 {[%emt 0:00:00]} 14. Qxe4 {[%emt 0:00:00]} Nf6 {[%emt 0:00:00]} 15. Qh4 {[%emt 0:00:00]} Be7 {[%emt 0:00:00]} 16. Rfe1 {[%emt 0:00:00]} Qc7 {[%emt 0:00:00]} 17. Ne5 {[%emt 0:00:00]} Nh7 {[%emt 0:00:00]} 18. Qf4 {[%emt 0:00:00]} Nf6 {[%emt 0:00:00]} 19. Nxc6 {[%emt 0:00:00]} Bd6 {[%emt 0:00:00]} 20. Qf3 {[%emt 0:00:00]} Rac8 {[%emt 0:00:00]} 21. d5 {[%emt 0:00:00]} e5 {[%emt 0:00:00]} 22. Nxa7 {[%emt 0:00:00]} Bxd5 {[%emt 0:00:00]} 23. Rxd5 {[%emt 0:00:00]} e4 {[%emt 0:00:00]} 24. Qd1 {[%emt 0:00:00]} Nxd5 {[%emt 0:00:00]} 25. Nb5 {[%emt 0:09:00]} 1-0